[Event "Late-Titled-Tuesday-Blitz-December-26-2023"]
[Site "Chess.com"]
[Date "2023.12.26"]
[Round "1"]
[White "MaestroCheck"]
[Black "HanSchut"]
[Result "1-0"]
[WhiteElo "2574"]
[BlackElo "2252"]
[TimeControl "180+1"]
[EndTime "14:04:30 PST"]
[Termination "MaestroCheck won by resignation"]

1. e4 {[%clk 0:02:59.7]} 1... c5 {[%clk 0:02:59.7]} 2. Nc3 {[%clk 0:02:58]} 2...
Nc6 {[%clk 0:02:58.7]} 3. Bb5 {[%clk 0:02:56.3]} 3... Nd4 {[%clk 0:02:58]} 4.
Nf3 {[%clk 0:02:56.1]} 4... Nxb5 {[%clk 0:02:57.7]} 5. Nxb5 {[%clk 0:02:56]}
5... a6 {[%clk 0:02:58.6]} 6. Nc3 {[%clk 0:02:56]} 6... g6 {[%clk 0:02:56.9]} 7.
d4 {[%clk 0:02:56.2]} 7... Bg7 {[%clk 0:02:56.7]} 8. dxc5 {[%clk 0:02:55.6]}
8... Qa5 {[%clk 0:02:57.3]} 9. O-O {[%clk 0:02:54.1]} 9... Qxc5 {[%clk
0:02:57.1]} 10. Be3 {[%clk 0:02:54.3]} 10... Qc6 {[%clk 0:02:55.6]} 11. Bd4
{[%clk 0:02:53.7]} 11... f6 {[%clk 0:02:53.1]} 12. e5 {[%clk 0:02:52.4]} 12...
b5 {[%clk 0:02:49]} 13. Re1 {[%clk 0:02:48.4]} 13... Bb7 {[%clk 0:02:47.8]} 14.
exf6 {[%clk 0:02:48.4]} 14... Bxf6 {[%clk 0:02:47.9]} 15. Bxf6 {[%clk
0:02:47.8]} 15... Nxf6 {[%clk 0:02:47.9]} 16. Qe2 {[%clk 0:02:48.2]} 16... e6
{[%clk 0:02:45.8]} 17. a3 {[%clk 0:02:40.4]} 17... O-O {[%clk 0:02:45.6]} 18.
Rad1 {[%clk 0:02:39]} 18... Nh5 {[%clk 0:02:41.6]} 19. Qe4 {[%clk 0:02:25.1]}
19... Qxe4 {[%clk 0:02:25.2]} 20. Nxe4 {[%clk 0:02:26]} 20... Bc6 {[%clk
0:02:25.7]} 21. Ne5 {[%clk 0:02:24.7]} 21... Bxe4 {[%clk 0:02:19.2]} 22. Rxe4
{[%clk 0:02:23.2]} 22... d5 {[%clk 0:02:19.2]} 23. Ree1 {[%clk 0:02:22.2]} 23...
Nf4 {[%clk 0:02:12.5]} 24. c3 {[%clk 0:02:18.3]} 24... a5 {[%clk 0:02:09.9]} 25.
Nd7 {[%clk 0:02:16.4]} 25... Rf7 {[%clk 0:02:01.2]} 26. Nc5 {[%clk 0:02:16.1]}
26... b4 {[%clk 0:01:53.5]} 27. axb4 {[%clk 0:02:12.8]} 27... axb4 {[%clk
0:01:54.4]} 28. cxb4 {[%clk 0:02:13.3]} 28... Rb8 {[%clk 0:01:50.5]} 29. Rd4
{[%clk 0:02:09.5]} 29... Re8 {[%clk 0:01:36.5]} 30. f3 {[%clk 0:02:04.7]} 30...
e5 {[%clk 0:01:36.6]} 31. Rd2 {[%clk 0:02:00.7]} 31... d4 {[%clk 0:01:32.6]} 32.
g3 {[%clk 0:01:57.9]} 32... Nh3+ {[%clk 0:01:30.6]} 33. Kg2 {[%clk 0:01:57.8]}
33... Ng5 {[%clk 0:01:31.5]} 34. f4 {[%clk 0:01:58]} 34... Ne6 {[%clk
0:01:19.3]} 35. Rxe5 {[%clk 0:01:57.1]} 1-0

[Event "Late-Titled-Tuesday-Blitz-December-26-2023"]
[Site "Chess.com"]
[Date "2023.12.26"]
[Round "1"]
[White "hsd2016"]
[Black "karinachess1"]
[Result "1-0"]
[WhiteElo "2259"]
[BlackElo "2555"]
[TimeControl "180+1"]
[EndTime "14:04:39 PST"]
[Termination "hsd2016 won by resignation"]

1. e4 {[%clk 0:02:57.2]} 1... e5 {[%clk 0:02:59.9]} 2. Nf3 {[%clk 0:02:57.7]}
2... Nc6 {[%clk 0:02:58.8]} 3. Bb5 {[%clk 0:02:58]} 3... Nf6 {[%clk 0:02:58.7]}
4. O-O {[%clk 0:02:57.7]} 4... Nxe4 {[%clk 0:02:58.5]} 5. Re1 {[%clk 0:02:57.6]}
5... Nd6 {[%clk 0:02:58.5]} 6. Nxe5 {[%clk 0:02:57.7]} 6... Nxe5 {[%clk
0:02:59]} 7. Rxe5+ {[%clk 0:02:57.5]} 7... Be7 {[%clk 0:02:59.9]} 8. Bf1 {[%clk
0:02:57.7]} 8... O-O {[%clk 0:03:00.2]} 9. d4 {[%clk 0:02:58.1]} 9... Bf6 {[%clk
0:02:59.8]} 10. Bd3 {[%clk 0:02:58.4]} 10... Bxe5 {[%clk 0:02:46.9]} 11. dxe5
{[%clk 0:02:59.3]} 11... Ne8 {[%clk 0:02:47.2]} 12. Qh5 {[%clk 0:02:59.5]} 12...
g6 {[%clk 0:02:32.2]} 13. Qh6 {[%clk 0:02:59.4]} 13... Qe7 {[%clk 0:02:28.9]}
14. Bg5 {[%clk 0:02:27.7]} 14... Qxe5 {[%clk 0:02:25.3]} 15. Nc3 {[%clk
0:02:27.1]} 15... Qg7 {[%clk 0:02:21.1]} 16. Qh4 {[%clk 0:02:27]} 16... f6
{[%clk 0:02:17.6]} 17. Bh6 {[%clk 0:02:20.9]} 17... Qe7 {[%clk 0:02:14.1]} 18.
Nd5 {[%clk 0:02:17.5]} 18... Qd6 {[%clk 0:02:04.7]} 19. Re1 {[%clk 0:02:02.5]}
19... Ng7 {[%clk 0:01:38]} 20. Bc4 {[%clk 0:01:46.2]} 20... Nf5 {[%clk
0:01:19.2]} 21. Bxf8 {[%clk 0:01:39.8]} 21... Nxh4 {[%clk 0:01:16.9]} 22. Bxd6
{[%clk 0:01:39.5]} 22... cxd6 {[%clk 0:01:17.8]} 23. Nc7+ {[%clk 0:01:38.2]}
23... Kg7 {[%clk 0:01:15.1]} 24. Nxa8 {[%clk 0:01:38.5]} 24... b6 {[%clk
0:01:15.5]} 25. Re7+ {[%clk 0:01:32.2]} 25... Kh6 {[%clk 0:01:15.3]} 26. Nc7
{[%clk 0:01:29.6]} 26... Bb7 {[%clk 0:01:15.3]} 27. Bd5 {[%clk 0:01:28.9]} 27...
Nf5 {[%clk 0:01:14.9]} 28. Rxd7 {[%clk 0:01:27.7]} 1-0

[Event "Late-Titled-Tuesday-Blitz-December-26-2023"]
[Site "Chess.com"]
[Date "2023.12.26"]
[Round "1"]
[White "baag"]
[Black "misterlamine"]
[Result "1-0"]
[WhiteElo "2825"]
[BlackElo "2455"]
[TimeControl "180+1"]
[EndTime "14:04:54 PST"]
[Termination "baag won by resignation"]

1. d4 {[%clk 0:03:00.9]} 1... Nf6 {[%clk 0:02:58.3]} 2. c4 {[%clk 0:03:01.5]}
2... g6 {[%clk 0:02:56.4]} 3. g3 {[%clk 0:03:01.2]} 3... Bg7 {[%clk 0:02:56.6]}
4. Bg2 {[%clk 0:03:01.6]} 4... O-O {[%clk 0:02:56.9]} 5. d5 {[%clk 0:03:02.5]}
5... d6 {[%clk 0:02:56.9]} 6. Nc3 {[%clk 0:03:03.2]} 6... Nbd7 {[%clk
0:02:56.2]} 7. Nf3 {[%clk 0:03:03.9]} 7... e5 {[%clk 0:02:56.5]} 8. dxe6 {[%clk
0:03:02.4]} 8... fxe6 {[%clk 0:02:57.4]} 9. O-O {[%clk 0:03:02.5]} 9... a5
{[%clk 0:02:54.2]} 10. Qc2 {[%clk 0:02:58.2]} 10... Nc5 {[%clk 0:02:49.6]} 11.
b3 {[%clk 0:02:57.2]} 11... e5 {[%clk 0:02:48.2]} 12. Bb2 {[%clk 0:02:57.9]}
12... Bf5 {[%clk 0:02:47.5]} 13. Qc1 {[%clk 0:02:58.5]} 13... Qc8 {[%clk
0:02:47.7]} 14. Rd1 {[%clk 0:02:49.8]} 14... Bh3 {[%clk 0:02:46.9]} 15. Bh1
{[%clk 0:02:49.6]} 15... Kh8 {[%clk 0:02:32]} 16. Ng5 {[%clk 0:02:34.3]} 16...
Bd7 {[%clk 0:02:20.7]} 17. Nd5 {[%clk 0:02:27.3]} 17... Nxd5 {[%clk 0:02:16.6]}
18. cxd5 {[%clk 0:02:28.2]} 18... h6 {[%clk 0:02:11.1]} 19. Nf3 {[%clk
0:02:27.2]} 19... g5 {[%clk 0:02:01.3]} 20. Nxe5 {[%clk 0:02:25.4]} 20... Be8
{[%clk 0:01:53.5]} 21. Nd3 {[%clk 0:02:18.6]} 21... Qf5 {[%clk 0:01:46]} 22.
Bxg7+ {[%clk 0:02:18.3]} 22... Kxg7 {[%clk 0:01:46.9]} 23. Qb2+ {[%clk
0:02:18.6]} 23... Kg8 {[%clk 0:01:45.2]} 24. Qd4 {[%clk 0:02:15.7]} 24... Nxd3
{[%clk 0:01:40.7]} 25. Rxd3 {[%clk 0:02:16.6]} 25... Bb5 {[%clk 0:01:40.6]} 26.
Rf3 {[%clk 0:02:13.4]} 26... Qg6 {[%clk 0:01:36.4]} 27. e4 {[%clk 0:02:06.4]}
27... Rae8 {[%clk 0:01:28.2]} 28. Rc1 {[%clk 0:02:03.8]} 28... c5 {[%clk
0:01:20.5]} 29. dxc6 {[%clk 0:02:00.2]} 29... Bxc6 {[%clk 0:01:18.9]} 30. Rxf8+
{[%clk 0:01:58.5]} 30... Rxf8 {[%clk 0:01:18.7]} 31. Rd1 {[%clk 0:01:57.9]}
31... Re8 {[%clk 0:01:15.1]} 32. Qxd6 {[%clk 0:01:49.6]} 32... Qxd6 {[%clk
0:01:14.5]} 33. Rxd6 {[%clk 0:01:50.5]} 33... Bxe4 {[%clk 0:01:12.3]} 34. Bxe4
{[%clk 0:01:51.4]} 34... Rxe4 {[%clk 0:01:11.7]} 35. Rxh6 {[%clk 0:01:52.1]}
35... Kg7 {[%clk 0:01:12.2]} 36. Rb6 {[%clk 0:01:52.1]} 36... Rb4 {[%clk
0:00:58.1]} 37. Rxb4 {[%clk 0:01:51.3]} 37... axb4 {[%clk 0:00:59]} 38. h4
{[%clk 0:01:50.4]} 38... gxh4 {[%clk 0:00:58.5]} 39. gxh4 {[%clk 0:01:51.3]}
39... Kf6 {[%clk 0:00:59.4]} 40. Kg2 {[%clk 0:01:52]} 40... Ke5 {[%clk
0:00:59.8]} 41. h5 {[%clk 0:01:52.1]} 41... Kf5 {[%clk 0:01:00]} 42. f4 {[%clk
0:01:52.4]} 1-0

[Event "Late-Titled-Tuesday-Blitz-December-26-2023"]
[Site "Chess.com"]
[Date "2023.12.26"]
[Round "1"]
[White "shaya01"]
[Black "colegiodemadrid"]
[Result "0-1"]
[WhiteElo "2217"]
[BlackElo "2566"]
[TimeControl "180+1"]
[EndTime "14:05:09 PST"]
[Termination "colegiodemadrid won by resignation"]

1. Nf3 {[%clk 0:02:47.3]} 1... Nf6 {[%clk 0:02:57.7]} 2. d3 {[%clk 0:02:44.8]}
2... d5 {[%clk 0:02:56.1]} 3. b3 {[%clk 0:02:43.8]} 3... g6 {[%clk 0:02:56.2]}
4. Bb2 {[%clk 0:02:43.9]} 4... Bg7 {[%clk 0:02:56.9]} 5. Nbd2 {[%clk 0:02:44]}
5... O-O {[%clk 0:02:57.4]} 6. e4 {[%clk 0:02:43.5]} 6... a5 {[%clk 0:02:55.9]}
7. a4 {[%clk 0:02:42.6]} 7... c5 {[%clk 0:02:53.2]} 8. e5 {[%clk 0:02:25]} 8...
Nfd7 {[%clk 0:02:51]} 9. d4 {[%clk 0:02:25]} 9... cxd4 {[%clk 0:02:50.3]} 10.
Bxd4 {[%clk 0:02:24.3]} 10... Nc6 {[%clk 0:02:50.3]} 11. e6 {[%clk 0:02:10.3]}
11... Nxd4 {[%clk 0:02:47.7]} 12. exd7 {[%clk 0:02:09.9]} 12... Nxf3+ {[%clk
0:02:40.1]} 13. Nxf3 {[%clk 0:02:03.3]} 13... Bc3+ {[%clk 0:02:39.6]} 14. Nd2
{[%clk 0:02:01]} 14... Qxd7 {[%clk 0:02:11]} 15. Rb1 {[%clk 0:01:59.4]} 15...
Qd6 {[%clk 0:02:04.7]} 16. Be2 {[%clk 0:01:49.6]} 16... Qb4 {[%clk 0:02:04.7]}
17. h4 {[%clk 0:01:43.7]} 17... e5 {[%clk 0:02:00.9]} 18. h5 {[%clk 0:01:39.9]}
18... e4 {[%clk 0:02:01.1]} 19. hxg6 {[%clk 0:01:19.9]} 19... fxg6 {[%clk
0:02:02]} 20. Bh5 {[%clk 0:01:16.8]} 20... Bxd2+ {[%clk 0:01:40.8]} 21. Qxd2
{[%clk 0:01:14.4]} 21... Qxd2+ {[%clk 0:01:40.4]} 22. Kxd2 {[%clk 0:01:14.4]}
22... gxh5 {[%clk 0:01:39.8]} 23. Rxh5 {[%clk 0:01:14.1]} 23... Rxf2+ {[%clk
0:01:38.9]} 24. Ke3 {[%clk 0:01:12.9]} 24... Rf5 {[%clk 0:01:38.6]} 25. Rxf5
{[%clk 0:01:09.1]} 25... Bxf5 {[%clk 0:01:39.5]} 26. Kd4 {[%clk 0:01:08.9]}
26... Rc8 {[%clk 0:01:36.1]} 27. c3 {[%clk 0:01:07.3]} 27... Rd8 {[%clk
0:01:30.1]} 28. Rf1 {[%clk 0:01:07.1]} 28... Bg6 {[%clk 0:01:30.1]} 29. Rf6
{[%clk 0:01:05.5]} 29... Kg7 {[%clk 0:01:29.4]} 30. Rb6 {[%clk 0:01:05.3]} 30...
Rd7 {[%clk 0:01:29.9]} 31. Rb5 {[%clk 0:01:05.6]} 31... Re7 {[%clk 0:01:27.5]}
32. Ke3 {[%clk 0:01:04.3]} 32... Rc7 {[%clk 0:01:25.7]} 33. Rxa5 {[%clk
0:00:58.2]} 33... Rxc3+ {[%clk 0:01:25]} 34. Kd2 {[%clk 0:00:57.9]} 34... Rxb3
{[%clk 0:01:22.5]} 35. Rxd5 {[%clk 0:00:57.4]} 35... Rd3+ {[%clk 0:01:23.2]} 0-1

[Event "Late-Titled-Tuesday-Blitz-December-26-2023"]
[Site "Chess.com"]
[Date "2023.12.26"]
[Round "1"]
[White "MightyGMpretender"]
[Black "jlf287"]
[Result "1-0"]
[WhiteElo "2756"]
[BlackElo "2442"]
[TimeControl "180+1"]
[EndTime "14:05:18 PST"]
[Termination "MightyGMpretender won on time"]

1. Nf3 {[%clk 0:03:00.9]} 1... d5 {[%clk 0:02:59.1]} 2. b3 {[%clk 0:03:01.8]}
2... Nf6 {[%clk 0:02:59.1]} 3. Bb2 {[%clk 0:03:02.5]} 3... e6 {[%clk 0:02:59.8]}
4. e3 {[%clk 0:03:03]} 4... a6 {[%clk 0:02:57.2]} 5. d4 {[%clk 0:03:03.6]} 5...
c5 {[%clk 0:02:57.1]} 6. Bd3 {[%clk 0:03:04.3]} 6... Nc6 {[%clk 0:02:56.8]} 7.
O-O {[%clk 0:03:04.9]} 7... Bd7 {[%clk 0:02:53.3]} 8. Nbd2 {[%clk 0:03:05.5]}
8... Be7 {[%clk 0:02:51.7]} 9. Ne5 {[%clk 0:03:05.2]} 9... O-O {[%clk
0:02:48.1]} 10. f4 {[%clk 0:03:05.6]} 10... b5 {[%clk 0:02:45]} 11. dxc5 {[%clk
0:02:52.7]} 11... Bxc5 {[%clk 0:02:42.4]} 12. Qf3 {[%clk 0:02:53.2]} 12... Rc8
{[%clk 0:02:36.6]} 13. a3 {[%clk 0:02:52.6]} 13... Qe7 {[%clk 0:02:15.4]} 14.
Kh1 {[%clk 0:02:49]} 14... Rfd8 {[%clk 0:02:14.8]} 15. Qh3 {[%clk 0:02:48.2]}
15... g6 {[%clk 0:02:07.1]} 16. Rae1 {[%clk 0:02:42.4]} 16... Be8 {[%clk
0:01:57.4]} 17. b4 {[%clk 0:02:41.6]} 17... Bd6 {[%clk 0:01:55.6]} 18. Ndf3
{[%clk 0:02:39.8]} 18... a5 {[%clk 0:01:40.7]} 19. Ng5 {[%clk 0:02:38]} 19...
axb4 {[%clk 0:01:34.2]} 20. Ng4 {[%clk 0:02:36.5]} 20... d4 {[%clk 0:01:21.6]}
21. Nxf6+ {[%clk 0:02:05.9]} 21... Qxf6 {[%clk 0:01:20]} 22. Qxh7+ {[%clk
0:02:06.3]} 22... Kf8 {[%clk 0:01:19.8]} 23. exd4 {[%clk 0:02:06.9]} 23... bxa3
{[%clk 0:01:13.9]} 24. Ba1 {[%clk 0:02:06.2]} 24... Nb4 {[%clk 0:00:52.4]} 25.
d5 {[%clk 0:02:05]} 25... Rc3 {[%clk 0:00:50.7]} 26. Rxe6 {[%clk 0:02:00.3]}
26... fxe6 {[%clk 0:00:16]} 27. Bxc3 {[%clk 0:01:59.4]} 27... e5 {[%clk
0:00:02.8]} 28. Ne6+ {[%clk 0:01:56.9]} 28... Qxe6 {[%clk 0:00:02.3]} 29. fxe5+
{[%clk 0:01:57.5]} 1-0

[Event "Late-Titled-Tuesday-Blitz-December-26-2023"]
[Site "Chess.com"]
[Date "2023.12.26"]
[Round "1"]
[White "Crasyhealer"]
[Black "Iball95"]
[Result "0-1"]
[WhiteElo "2458"]
[BlackElo "2829"]
[TimeControl "180+1"]
[EndTime "14:05:38 PST"]
[Termination "Iball95 won by resignation"]

1. c4 {[%clk 0:02:57.5]} 1... e6 {[%clk 0:02:59.4]} 2. g3 {[%clk 0:02:56.4]}
2... d5 {[%clk 0:03:00]} 3. Bg2 {[%clk 0:02:57]} 3... Nf6 {[%clk 0:03:00.5]} 4.
d4 {[%clk 0:02:54.8]} 4... c5 {[%clk 0:02:59.6]} 5. cxd5 {[%clk 0:02:50.2]} 5...
exd5 {[%clk 0:03:00.5]} 6. Nf3 {[%clk 0:02:49.7]} 6... Nc6 {[%clk 0:03:01.3]} 7.
O-O {[%clk 0:02:49]} 7... Be7 {[%clk 0:03:01.6]} 8. dxc5 {[%clk 0:02:47.5]} 8...
Bxc5 {[%clk 0:03:02.5]} 9. Nbd2 {[%clk 0:02:43]} 9... O-O {[%clk 0:03:02]} 10.
Nb3 {[%clk 0:02:42.9]} 10... Bb6 {[%clk 0:03:02.7]} 11. Nfd4 {[%clk 0:02:40.5]}
11... Re8 {[%clk 0:02:58.2]} 12. Bg5 {[%clk 0:02:37.9]} 12... Bg4 {[%clk
0:02:49.6]} 13. Re1 {[%clk 0:02:28.5]} 13... h6 {[%clk 0:02:49.2]} 14. Bf4
{[%clk 0:02:01.5]} 14... g5 {[%clk 0:02:42.8]} 15. Be3 {[%clk 0:01:55.3]} 15...
Rxe3 {[%clk 0:02:27.2]} 16. fxe3 {[%clk 0:01:56.2]} 16... Qe7 {[%clk 0:02:27]}
17. Qd3 {[%clk 0:01:28.8]} 17... Ne5 {[%clk 0:02:18.3]} 18. Qd2 {[%clk
0:00:34.1]} 18... Nc4 {[%clk 0:02:18.5]} 19. Qd3 {[%clk 0:00:24.4]} 19... Nxe3
{[%clk 0:02:18.8]} 20. Kh1 {[%clk 0:00:20.4]} 20... Re8 {[%clk 0:01:45.8]} 21.
Bf3 {[%clk 0:00:19.7]} 21... Bh3 {[%clk 0:01:44.5]} 22. Rac1 {[%clk 0:00:15.9]}
22... Qe5 {[%clk 0:01:41.9]} 23. Rc3 {[%clk 0:00:11.5]} 23... g4 {[%clk
0:01:41.5]} 24. Bxd5 {[%clk 0:00:10.8]} 24... Qxd5+ {[%clk 0:01:41]} 25. Nf3
{[%clk 0:00:11.3]} 25... gxf3 {[%clk 0:01:30.8]} 26. Qxd5 {[%clk 0:00:11]} 26...
Bg2+ {[%clk 0:01:26.8]} 0-1

[Event "Late-Titled-Tuesday-Blitz-December-26-2023"]
[Site "Chess.com"]
[Date "2023.12.26"]
[Round "1"]
[White "guillembaches"]
[Black "Shankland"]
[Result "0-1"]
[WhiteElo "2495"]
[BlackElo "2953"]
[TimeControl "180+1"]
[EndTime "14:05:50 PST"]
[Termination "Shankland won by checkmate"]

1. d4 {[%clk 0:03:00.9]} 1... Nf6 {[%clk 0:02:59]} 2. Nf3 {[%clk 0:03:01.3]}
2... e6 {[%clk 0:02:59.3]} 3. Bg5 {[%clk 0:03:01.6]} 3... b6 {[%clk 0:02:57.7]}
4. Nbd2 {[%clk 0:03:01.1]} 4... Bb7 {[%clk 0:02:57.6]} 5. e3 {[%clk 0:03:01.4]}
5... h6 {[%clk 0:02:57.2]} 6. Bh4 {[%clk 0:03:01]} 6... d6 {[%clk 0:02:57.4]} 7.
Bxf6 {[%clk 0:02:59.9]} 7... Qxf6 {[%clk 0:02:57]} 8. Bd3 {[%clk 0:03:00.1]}
8... Nd7 {[%clk 0:02:55.8]} 9. Qe2 {[%clk 0:02:59.8]} 9... a6 {[%clk 0:02:54.9]}
10. c3 {[%clk 0:02:59.6]} 10... g6 {[%clk 0:02:54.4]} 11. O-O-O {[%clk
0:02:53.6]} 11... Bg7 {[%clk 0:02:54.3]} 12. h4 {[%clk 0:02:48.6]} 12... O-O
{[%clk 0:02:50.5]} 13. g4 {[%clk 0:02:45.3]} 13... Qe7 {[%clk 0:02:49.5]} 14.
Kb1 {[%clk 0:02:36.7]} 14... c5 {[%clk 0:02:48.1]} 15. Rhe1 {[%clk 0:02:28.1]}
15... b5 {[%clk 0:02:47.6]} 16. Bc2 {[%clk 0:02:05.8]} 16... Rab8 {[%clk
0:02:44.6]} 17. h5 {[%clk 0:01:52.6]} 17... g5 {[%clk 0:02:43.8]} 18. Ka1 {[%clk
0:01:39.8]} 18... Rfc8 {[%clk 0:02:41.3]} 19. Rc1 {[%clk 0:01:35.4]} 19... a5
{[%clk 0:02:39.9]} 20. Qd3 {[%clk 0:01:26.6]} 20... Nf6 {[%clk 0:02:28.6]} 21.
Nh2 {[%clk 0:01:15.6]} 21... b4 {[%clk 0:02:26.2]} 22. c4 {[%clk 0:01:14.7]}
22... d5 {[%clk 0:02:22]} 23. cxd5 {[%clk 0:01:10.6]} 23... exd5 {[%clk
0:02:07.7]} 24. Qf5 {[%clk 0:00:50.7]} 24... Rc7 {[%clk 0:01:54.2]} 25. Ndf3
{[%clk 0:00:46.6]} 25... Ne4 {[%clk 0:01:49.1]} 26. Bxe4 {[%clk 0:00:42.6]}
26... dxe4 {[%clk 0:01:49]} 27. Ne5 {[%clk 0:00:40.9]} 27... cxd4 {[%clk
0:01:45.7]} 28. Rxc7 {[%clk 0:00:36.1]} 28... Qxc7 {[%clk 0:01:44.8]} 29. exd4
{[%clk 0:00:36.5]} 29... a4 {[%clk 0:01:40.7]} 30. Nf1 {[%clk 0:00:18.7]} 30...
Rc8 {[%clk 0:01:39]} 31. Nd2 {[%clk 0:00:15]} 31... a3 {[%clk 0:01:38.4]} 32.
Ndc4 {[%clk 0:00:11.7]} 32... Bxe5 {[%clk 0:01:34.9]} 33. Nxe5 {[%clk
0:00:08.4]} 33... Qc1+ {[%clk 0:01:34.7]} 34. Rxc1 {[%clk 0:00:09]} 34... Rxc1#
{[%clk 0:01:35.3]} 0-1

[Event "Late-Titled-Tuesday-Blitz-December-26-2023"]
[Site "Chess.com"]
[Date "2023.12.26"]
[Round "1"]
[White "yaguigor"]
[Black "GMJustin"]
[Result "1-0"]
[WhiteElo "2571"]
[BlackElo "2241"]
[TimeControl "180+1"]
[EndTime "14:05:51 PST"]
[Termination "yaguigor won on time"]

1. e4 {[%clk 0:02:33]} 1... c5 {[%clk 0:02:55.4]} 2. Nf3 {[%clk 0:02:32.5]} 2...
d6 {[%clk 0:02:55.1]} 3. d4 {[%clk 0:02:33.1]} 3... cxd4 {[%clk 0:02:54.7]} 4.
Nxd4 {[%clk 0:02:33.8]} 4... Nf6 {[%clk 0:02:54.2]} 5. Nc3 {[%clk 0:02:34.4]}
5... a6 {[%clk 0:02:54.2]} 6. f3 {[%clk 0:02:34.7]} 6... e5 {[%clk 0:02:44.6]}
7. Nb3 {[%clk 0:02:34.5]} 7... Be6 {[%clk 0:02:43.8]} 8. Be3 {[%clk 0:02:35]}
8... Be7 {[%clk 0:02:39.6]} 9. Qd2 {[%clk 0:02:35.6]} 9... O-O {[%clk
0:02:26.2]} 10. O-O-O {[%clk 0:02:35.1]} 10... b5 {[%clk 0:02:20.9]} 11. g4
{[%clk 0:02:32.6]} 11... b4 {[%clk 0:00:59.9]} 12. Nd5 {[%clk 0:02:29.9]} 12...
Bxd5 {[%clk 0:00:56.5]} 13. exd5 {[%clk 0:02:30.8]} 13... a5 {[%clk 0:00:56.4]}
14. Kb1 {[%clk 0:02:24]} 14... a4 {[%clk 0:00:36.6]} 15. Nc1 {[%clk 0:02:10.5]}
15... Qa5 {[%clk 0:00:33.4]} 16. g5 {[%clk 0:01:54.4]} 16... Nfd7 {[%clk
0:00:32.2]} 17. h4 {[%clk 0:01:48.5]} 17... Na6 {[%clk 0:00:24]} 18. h5 {[%clk
0:01:48.4]} 18... Nac5 {[%clk 0:00:19.5]} 19. Rh4 {[%clk 0:01:46.1]} 19... b3
{[%clk 0:00:10.2]} 20. cxb3 {[%clk 0:01:30.6]} 20... axb3 {[%clk 0:00:08.4]} 21.
Qxa5 {[%clk 0:01:25.7]} 21... Rxa5 {[%clk 0:00:07.6]} 22. Nxb3 {[%clk
0:01:22.7]} 22... Nxb3 {[%clk 0:00:05.2]} 23. axb3 {[%clk 0:01:23.6]} 23... Rb8
{[%clk 0:00:03]} 24. Ra4 {[%clk 0:01:14.8]} 1-0

[Event "Late-Titled-Tuesday-Blitz-December-26-2023"]
[Site "Chess.com"]
[Date "2023.12.26"]
[Round "1"]
[White "Sanyura"]
[Black "Viktor_Poddubnyi"]
[Result "1-0"]
[WhiteElo "2611"]
[BlackElo "2308"]
[TimeControl "180+1"]
[EndTime "14:05:53 PST"]
[Termination "Sanyura won on time"]

1. Nf3 {[%clk 0:02:49.1]} 1... g6 {[%clk 0:02:59.7]} 2. g3 {[%clk 0:02:49.1]}
2... Bg7 {[%clk 0:03:00.1]} 3. d4 {[%clk 0:02:50]} 3... Nf6 {[%clk 0:03:00.1]}
4. Bg2 {[%clk 0:02:50.3]} 4... O-O {[%clk 0:03:00.3]} 5. O-O {[%clk 0:02:50.8]}
5... d6 {[%clk 0:03:00.8]} 6. c4 {[%clk 0:02:50.6]} 6... Nc6 {[%clk 0:03:01.1]}
7. Nc3 {[%clk 0:02:51.2]} 7... Bg4 {[%clk 0:03:01.3]} 8. d5 {[%clk 0:02:47.1]}
8... Na5 {[%clk 0:03:01.5]} 9. b3 {[%clk 0:02:30.9]} 9... Nxd5 {[%clk 0:02:34]}
10. Nxd5 {[%clk 0:02:29.9]} 10... Bxa1 {[%clk 0:02:32.4]} 11. Bh6 {[%clk
0:02:30]} 11... Bh8 {[%clk 0:01:49.9]} 12. Bxf8 {[%clk 0:02:24.3]} 12... Kxf8
{[%clk 0:01:49.7]} 13. Qd2 {[%clk 0:02:23.3]} 13... Bxf3 {[%clk 0:01:14.6]} 14.
Bxf3 {[%clk 0:02:15]} 14... Nc6 {[%clk 0:01:13.9]} 15. Bg2 {[%clk 0:02:11.2]}
15... e6 {[%clk 0:01:09.7]} 16. Nc3 {[%clk 0:02:07.1]} 16... Qe7 {[%clk
0:01:01]} 17. h4 {[%clk 0:02:04.8]} 17... h5 {[%clk 0:00:47.8]} 18. Kh2 {[%clk
0:02:04]} 18... Rb8 {[%clk 0:00:45.6]} 19. f4 {[%clk 0:02:04.1]} 19... Nd4
{[%clk 0:00:38.7]} 20. e3 {[%clk 0:02:02.6]} 20... Nf5 {[%clk 0:00:37.6]} 21. e4
{[%clk 0:01:52.1]} 21... Nh6 {[%clk 0:00:20.1]} 22. Bf3 {[%clk 0:01:51]} 22...
Qf6 {[%clk 0:00:14.1]} 23. e5 {[%clk 0:01:48.5]} 23... dxe5 {[%clk 0:00:10.9]}
24. fxe5 {[%clk 0:01:49.2]} 24... Ng4+ {[%clk 0:00:07.3]} 25. Kg2 {[%clk
0:01:34.2]} 25... Qxe5 {[%clk 0:00:07.3]} 26. Bxg4 {[%clk 0:01:29.4]} 26... hxg4
{[%clk 0:00:03.8]} 27. Ne2 {[%clk 0:01:29.5]} 27... Qb2 {[%clk 0:00:01.8]} 28.
Qxb2 {[%clk 0:01:27.9]} 28... Bxb2 {[%clk 0:00:02.7]} 29. Nf4 {[%clk 0:01:28.5]}
29... Kg7 {[%clk 0:00:01.6]} 30. Rd1 {[%clk 0:01:29.2]} 1-0